bitfinex/quotes_ETHUSD_20241123
["timestamp","ask_amount","ask_price","bid_price","bid_amount"]
[1732387198489,0.27216705,3422.3,3421.2,0.2913]
[1732387198886,0.27216705,3422.4,3421.3,0.2913]
[1732387199088,0.27216705,3422.4,3421.1,3.0]
[1732387199089,0.27216705,3422.3,3421.5,0.2913]
[1732387199326,0.27216705,3422.3,3421.7,0.2913]
[1732387199635,0.55,3422.5,3421.7,0.2913]
[1732387199636,0.27216705,3422.2,3421.7,0.2913]
[1732387199919,0.29849625,3422.1,3421.7,0.2913]
[1732387200136,0.0263292,3422.4,3421.7,0.2913]
[1732387200313,0.27265287,3422.3,3421.7,0.2913]
[1732387200514,0.27265287,3422.2,3421.7,0.2913]
[1732387200739,0.27265287,3422.1,3421.7,0.2913]
[1732387200906,0.0263292,3422.7,3421.7,0.2913]
[1732387200907,0.55,3422.5,3421.7,0.2913]
[1732387201234,0.27265287,3422.4,3421.7,0.2913]
[1732387201605,0.27265287,3422.4,3421.8,1.0936]
[1732387201917,0.27265287,3422.3,3421.8,1.0936]
[1732387202146,0.27265287,3422.2,3421.8,1.0936]
[1732387202309,0.27265287,3422.7,3421.8,1.0936]
[1732387202634,0.27270739,3422.6,3421.8,1.0936]
[1732387202837,0.27270739,3422.5,3421.8,1.0936]
[1732387203044,0.27270739,3422.4,3421.8,1.0936]
[1732387203241,0.27270739,3422.3,3421.8,1.0936]
[1732387203404,0.55,3422.8,3421.8,1.0936]
[1732387203405,0.27270739,3422.2,3421.8,1.0936]
[1732387203606,0.55,3422.8,3421.8,1.0936]
[1732387203822,0.27274675,3422.7,3421.8,0.78679421]
[1732387204104,0.27274675,3422.6,3421.8,0.78679421]
[1732387204334,0.27274675,3422.5,3421.8,0.78679421]
[1732387204515,0.27278705,3422.4,3421.9,0.02922095]
[1732387204735,0.8225,3423.6,3421.9,0.02922095]
[1732387205045,0.29909968,3423.5,3421.9,0.02922095]
[1732387205217,0.27277048,3423.4,3421.9,0.02922095]
[1732387205413,0.27277048,3423.3,3422.1,0.2913]
[1732387205647,0.27277048,3423.2,3422.2,0.02921556]
[1732387205947,0.27277048,3423.1,3422.3,0.2913]
[1732387206150,0.27277048,3423.0,3422.4,0.02921557]
[1732387206445,0.27277048,3422.9,3422.5,0.2913]
[1732387206657,0.7645,3423.9,3422.5,0.36469196]
[1732387206939,0.82270919,3423.8,3422.8,1.1142]
[1732387207140,0.27270919,3423.7,3422.8,1.1142]
[1732387207340,0.27270919,3423.6,3422.9,0.36445318]
[1732387207561,0.27270919,3423.5,3422.9,0.36445318]
[1732387207908,0.27270919,3423.4,3422.9,0.36445318]
[1732387208117,0.27270919,3423.3,3422.9,0.36445318]
[1732387208322,0.55,3423.8,3422.9,0.2913]
[1732387208536,0.27253472,3423.7,3422.9,0.2913]
[1732387208771,0.27253472,3423.6,3422.9,0.2913]
[1732387208913,0.29886392,3423.5,3422.9,0.2913]
[1732387209119,0.27253472,3423.4,3422.9,0.2913]
[1732387209317,0.29886392,3423.3,3422.9,0.2913]
[1732387209553,0.27253472,3423.2,3423.0,0.07309349]
[1732387209843,0.27253472,3423.1,3423.0,0.07309349]
[1732387212142,0.27239595,3423.1,3423.0,0.07309349]
[1732387212349,0.27239595,3423.1,3423.0,0.82549349]
[1732387212714,0.7901,3424.1,3423.0,1.11679349]
[1732387212914,0.2723293,3424.0,3423.0,1.11679349]
[1732387213137,0.2723293,3423.9,3423.0,1.11679349]
[1732387213453,0.2723293,3423.8,3423.0,1.11679349]
[1732387213652,0.2723293,3423.7,3423.0,1.11679349]
[1732387213873,0.7901,3424.1,3423.0,1.11679349]
[1732387213874,0.2723293,3423.6,3423.0,1.11679349]
[1732387214026,0.2723293,3423.5,3423.0,1.11679349]
[1732387214375,0.2723293,3423.4,3423.1,0.7524]
[1732387214574,0.2723293,3423.3,3423.1,0.7524]
[1732387214864,0.7901,3424.1,3423.2,0.07329257]
[1732387215090,0.27218195,3424.0,3423.2,0.07329257]
[1732387215363,0.27218195,3423.9,3423.2,0.07329257]
[1732387215540,0.27218195,3423.8,3423.2,0.07329257]
[1732387215744,0.0263292,3424.0,3423.2,0.07329257]
[1732387216071,0.27211416,3423.9,3423.2,0.07329257]
[1732387216226,0.27211416,3423.8,3423.2,0.07329257]
[1732387216431,0.27211416,3423.7,3423.2,0.07329257]
[1732387216624,0.27211416,3423.6,3423.3,0.7524]
[1732387216822,0.7901,3424.5,3423.3,0.7524]
[1732387216823,0.5763292,3424.4,3423.3,0.7524]
[1732387217059,0.27205424,3424.3,3423.3,0.7524]
[1732387217264,0.27205424,3424.2,3423.3,0.7524]
[1732387217467,0.27205424,3424.1,3423.4,0.07311328]
[1732387217766,0.27205424,3424.0,3423.4,0.07311328]
[1732387217969,1.08848344,3423.9,3423.4,0.07311328]
[1732387218128,0.55,3423.6,3423.4,0.07311328]
[1732387218328,0.55,3423.6,3422.8,0.2913]
[1732387218329,0.51459886,3423.5,3422.8,0.2913]
[1732387218566,0.27205424,3423.4,3422.8,0.2913]
[1732387218768,1.08848344,3423.3,3421.9,0.2913]
[1732387218979,0.27205424,3423.2,3422.9,0.07338617]
[1732387219132,0.27205424,3423.1,3422.6,0.7524]
[1732387219329,0.7901,3423.3,3423.0,0.07332647]
[1732387219670,0.27203136,3423.2,3422.6,0.7524]
[1732387219855,0.7901,3423.3,3423.1,0.07326677]
[1732387220027,0.27203279,3423.2,3423.1,0.07326677]
[1732387220231,0.27203279,3423.2,3423.1,0.7524]
[1732387220466,0.27203279,3423.2,3423.1,0.82569702]
[1732387220630,0.7901,3423.9,3423.1,0.82569702]
[1732387220832,0.29835127,3423.8,3423.1,0.7524]
[1732387221064,0.27202207,3423.7,3423.2,0.07323732]
[1732387221242,0.27202207,3423.6,3423.2,0.07323732]
[1732387221452,0.27202207,3423.5,3423.2,0.07323732]
[1732387221628,0.27202207,3423.4,3423.2,0.07323732]
[1732387221975,0.7901,3423.9,3423.2,0.07323732]
[1732387222132,0.27201443,3423.8,3423.2,0.07323732]
[1732387222337,0.27201443,3423.7,3423.2,0.07323732]
[1732387222661,0.27201443,3423.6,3423.2,0.07323732]
[1732387222864,0.27201443,3423.5,3423.2,0.07323732]
[1732387223189,0.7901,3423.9,3423.2,0.07323732]
[1732387223190,0.27202147,3423.4,3423.2,0.07323732]
[1732387223390,0.7901,3423.9,3423.2,0.07323732]
[1732387223603,0.29836755,3423.8,3423.2,0.07323732]
[1732387223801,0.27203835,3423.7,3423.2,0.07323732]
[1732387224007,0.27203835,3423.6,3423.2,0.07323732]
[1732387224174,0.27203835,3423.5,3423.3,0.2913]
[1732387224497,0.27203835,3423.4,3423.3,0.2913]
[1732387224673,0.27203835,3423.8,3423.3,0.2913]
[1732387224863,0.27203835,3423.7,3423.3,0.2913]
[1732387225193,0.27203835,3423.6,3423.2,0.2913]
[1732387225396,0.27203835,3423.5,3423.2,0.2913]
[1732387225596,0.27203835,3423.4,3423.2,0.2913]
[1732387225898,0.55,3424.1,3423.2,0.2913]
[1732387226064,0.27206288,3424.0,3423.2,0.2913]
[1732387226261,0.27206288,3423.9,3423.3,0.2913]
[1732387226606,0.27206288,3423.8,3423.5,0.2913]
[1732387226817,0.55,3424.3,3423.5,0.2913]
[1732387227020,0.27207067,3424.2,3423.5,0.2913]
[1732387227318,0.27207067,3424.1,3423.5,0.2913]
[1732387227603,0.27207067,3424.0,3423.5,0.2913]
[1732387227807,0.27207067,3423.9,3423.4,0.7765]
[1732387228100,0.55,3423.5,3422.0,0.7765]
[1732387228308,0.55,3423.2,3422.0,0.7765]
[1732387228462,0.7719,3422.9,3422.0,0.7765]
[1732387228662,0.29839987,3422.8,3420.8,0.7765]
[1732387228864,0.27207067,3422.7,3421.1,0.2913]
[1732387229060,0.27207067,3422.7,3420.6,0.40826604]
[1732387229061,0.7719,3422.5,3421.3,0.2913]
[1732387229280,0.27207067,3422.4,3421.3,0.2913]
[1732387229509,0.55,3422.2,3421.2,0.7765]
[1732387229665,1.07029987,3422.1,3421.4,0.07148676]
[1732387229865,0.55,3421.9,3421.4,0.07148676]
[1732387230219,0.7719,3421.7,3420.7,0.7765]
[1732387230578,0.27223483,3421.6,3420.8,0.07175918]
[1732387230919,0.27223483,3421.5,3420.8,0.07175918]
[1732387231123,0.0263292,3422.5,3420.8,0.07175918]
[1732387231411,0.0263292,3422.5,3420.9,0.7842]
[1732387231412,0.55,3422.3,3420.9,0.7842]
[1732387231575,0.55,3422.3,3420.9,0.81342778]
[1732387231576,0.27206426,3422.2,3420.9,0.81342778]
[1732387231781,0.27206426,3422.1,3421.1,0.7842]
[1732387231982,0.27206426,3422.0,3421.1,0.7842]
[1732387232276,3.0,3423.2,3420.6,0.2913]
[1732387232277,0.8128,3422.7,3421.3,0.7842]
[1732387232506,0.27198835,3422.6,3421.4,0.81342341]
[1732387232705,0.27198835,3422.5,3421.4,1.1458655]
[1732387233014,0.27198835,3422.4,3421.5,0.8134208]
[1732387233213,0.8128,3423.0,3421.5,0.8134208]
[1732387233382,0.27195899,3422.9,3421.6,0.82522438]
[1732387233715,0.27195899,3422.8,3421.6,0.82522438]
[1732387233887,0.27195899,3422.7,3421.6,0.82522438]
[1732387234095,0.27196147,3422.6,3421.6,0.82522438]
[1732387234291,0.27196147,3422.5,3421.7,0.02922012]
[1732387234490,0.8128,3423.0,3421.7,0.02922012]
[1732387234491,0.8128,3423.0,3421.9,0.7842]
[1732387234816,0.0263292,3423.8,3421.9,0.7842]
[1732387234817,0.27197633,3422.9,3421.9,0.7842]
[1732387235020,0.27197633,3422.8,3422.1,0.7842]
[1732387235196,0.8128,3423.3,3422.1,0.7842]
[1732387235516,0.27195548,3423.2,3422.2,0.07007263]
[1732387235704,0.27195548,3423.1,3422.3,0.7842]
[1732387235908,0.27195548,3423.0,3422.4,0.02921507]
[1732387236098,0.27195548,3423.0,3422.4,0.06998542]
[1732387236582,0.27195548,3423.0,3422.5,0.7842]
[1732387236809,0.0263292,3423.5,3422.5,0.7842]
[1732387237010,0.0263292,3423.5,3422.6,0.04065269]
[1732387237217,0.8128,3424.4,3422.7,0.7842]
[1732387237987,0.8391292,3424.3,3422.7,0.7842]
[1732387238211,0.55,3424.2,3422.7,0.7842]
[1732387238522,0.0263292,3424.1,3422.7,0.7842]
[1732387238721,0.55,3423.9,3422.7,0.7842]
[1732387238898,0.5763292,3423.9,3422.7,0.7842]
[1732387239100,0.27185687,3423.8,3422.9,0.7842]
[1732387239302,0.27185687,3423.7,3423.0,0.2913]
[1732387239521,0.27185687,3423.6,3423.0,0.33177333]
[1732387239829,0.27185687,3423.5,3423.0,0.33177333]
[1732387239999,0.0263292,3424.2,3423.0,0.33177333]
[1732387240331,0.27182436,3424.1,3423.0,0.33177333]
[1732387240624,0.8128,3424.3,3423.0,0.33177333]
[1732387240625,0.29815356,3424.0,3423.0,0.33177333]
[1732387240921,0.27181983,3423.9,3423.4,0.2913]
[1732387241230,0.8128,3424.6,3423.4,0.32050779]
[1732387241398,0.27174221,3424.5,3423.5,0.04013286]
[1732387241722,0.27174221,3424.4,3423.5,0.04013286]
[1732387242029,0.27174221,3424.3,3423.5,0.04013286]
[1732387242730,0.27174221,3424.2,3423.5,0.04013286]
[1732387243024,0.27174221,3424.1,3423.6,1.0755]
[1732387243224,0.27174221,3424.0,3423.6,1.0755]
[1732387243525,0.27174221,3423.9,3423.7,0.03990919]
[1732387243821,0.8128,3424.4,3423.6,1.0755]
[1732387244000,0.29799349,3424.3,3423.6,0.7842]
[1732387244201,0.27166429,3424.2,3423.6,0.7842]
[1732387244384,0.27166429,3424.3,3423.7,0.03988858]
[1732387244592,0.29799349,3424.2,3423.7,0.03988858]
[1732387244821,0.27166429,3424.1,3423.7,0.03988858]
[1732387245128,0.27166429,3424.0,3423.7,0.03988858]
[1732387245288,0.0263292,3424.2,3423.7,0.03988858]
[1732387245490,0.27160894,3424.1,3423.7,0.03988858]
[1732387245723,0.8128,3424.4,3423.7,0.03988858]
[1732387245724,0.27160894,3424.0,3423.7,0.03988858]
[1732387245884,0.27160894,3423.9,3423.7,0.03988858]
[1732387246087,0.8165,3425.3,3423.7,0.03988858]
[1732387246397,0.82156944,3425.2,3423.8,0.7861]
[1732387246587,0.55,3425.0,3423.8,0.7861]
[1732387246938,0.55,3424.8,3423.9,0.039771]
[1732387247092,0.27156944,3424.7,3424.0,0.7861]
[1732387247290,0.8165,3425.3,3424.0,0.82578147]
[1732387247291,0.27156944,3424.6,3424.0,0.82578147]
[1732387247489,0.0263292,3425.2,3424.0,0.82578147]
[1732387247714,0.27147525,3425.1,3424.0,0.82578147]
[1732387248023,0.29780549,3425.0,3424.0,0.82578147]
[1732387248236,0.27147629,3424.9,3424.0,0.82578147]
[1732387248401,0.27147629,3424.8,3424.0,0.82578147]
[1732387248593,0.27147629,3424.7,3424.0,0.7861]
[1732387248978,0.8165,3425.6,3424.1,0.85492122]
[1732387249428,2.8537,3426.5,3424.1,0.85492122]
[1732387249429,0.27136122,3425.5,3424.1,0.85492122]
[1732387249604,0.27136122,3425.4,3424.1,0.85492122]
[1732387249807,0.27136122,3425.3,3424.1,0.81529969]
[1732387250002,0.8165,3425.9,3424.3,0.7861]
[1732387250191,0.29753737,3425.8,3424.3,0.7861]
[1732387250386,0.27120817,3425.7,3424.5,0.7861]
[1732387250587,0.29753737,3425.6,3424.5,0.7861]
[1732387250888,0.27120817,3425.5,3424.6,0.03967662]
[1732387251107,0.29753737,3425.4,3424.6,0.03967662]
[1732387251323,0.0263292,3425.4,3424.6,0.03967662]
[1732387251527,0.8165,3425.9,3424.6,0.03967662]
[1732387251528,0.0263292,3425.8,3424.6,0.03967662]
[1732387251705,0.27089388,3425.7,3424.6,0.06887261]
[1732387251901,0.8165,3425.9,3424.7,0.7728]
[1732387252106,0.27089732,3425.8,3424.7,0.7728]
[1732387252307,0.27089732,3425.7,3424.7,0.7728]
[1732387252493,0.29722652,3425.6,3424.8,0.03955909]
[1732387252698,0.8165,3425.9,3424.8,0.03955909]
[1732387252699,0.27089732,3425.5,3424.8,0.03955909]
[1732387252902,0.8165,3425.9,3424.8,0.03955909]
[1732387252903,0.8165,3425.9,3424.9,0.7728]
[1732387253204,0.29708841,3425.8,3424.9,0.81118456]
[1732387253430,0.27075921,3425.7,3424.9,0.81118456]
[1732387253731,0.0263292,3425.6,3424.9,0.81118456]
[1732387253909,0.0263292,3425.8,3424.9,0.81118456]
[1732387254117,0.27064238,3425.7,3424.9,0.81118456]
[1732387254312,0.29697158,3425.6,3424.9,0.81118456]
[1732387254631,0.0263292,3425.6,3424.9,0.81118456]
[1732387255013,0.0263292,3425.8,3424.9,0.81118456]
[1732387255216,0.27054863,3425.7,3424.9,0.81118456]
[1732387255426,0.0263292,3425.8,3424.9,0.81118456]
[1732387255622,0.27045117,3425.7,3424.9,0.81118456]
[1732387255814,0.0263292,3425.6,3424.9,0.81118456]
[1732387256216,0.8165,3425.9,3424.9,0.81118456]
[1732387256411,0.27036957,3425.8,3424.9,0.81118456]
[1732387256616,0.55,3426.3,3424.9,0.81118456]
[1732387256844,0.29669563,3426.2,3424.9,0.81118456]
[1732387257047,0.43234599,3426.1,3424.9,0.7728]
[1732387257228,0.29669563,3426.0,3424.9,0.7728]
[1732387257429,0.0263292,3426.0,3425.0,0.03793901]
[1732387258038,0.16197956,3426.1,3425.0,0.06713273]
[1732387258242,0.55,3426.3,3425.1,0.7547]
[1732387258448,0.27019495,3426.2,3425.1,0.7547]
[1732387258746,0.0263292,3426.1,3425.3,0.7547]
[1732387258941,0.0263292,3426.3,3425.4,0.03799645]
[1732387259106,0.7731,3426.4,3425.4,0.03799645]
[1732387259308,0.27023798,3426.3,3425.4,0.03799645]
[1732387259532,0.7731,3427.2,3425.5,0.7547]
[1732387259738,0.7731,3426.9,3425.6,0.03787904]
[1732387259910,0.27018115,3426.8,3425.6,0.02918898]
[1732387260112,0.27018115,3426.8,3425.7,0.79252034]
[1732387260316,0.0263292,3426.7,3425.7,0.79252034]
[1732387260522,0.27018115,3426.6,3425.7,0.79252034]
[1732387260826,0.0263292,3426.5,3425.7,0.79252034]
[1732387261028,0.0263292,3426.8,3425.7,0.79252034]
[1732387261232,0.27055608,3426.7,3425.7,0.79252034]
[1732387261433,0.27055608,3426.6,3425.7,0.79252034]
[1732387261657,0.16199853,3426.7,3425.7,0.79252034]
[1732387261960,0.2704486,3426.6,3425.7,0.79252034]
[1732387262126,0.16199853,3426.7,3425.7,0.79252034]
[1732387262336,0.29693417,3426.6,3425.7,0.79252034]
[1732387262642,0.27060497,3426.5,3425.7,0.79252034]
[1732387263261,0.16199853,3426.7,3425.7,0.79252034]
[1732387263262,0.27060497,3426.6,3425.7,0.79252034]
[1732387263558,0.27071563,3426.5,3425.8,0.03774058]
[1732387263854,0.15114277,3426.6,3425.8,0.03774058]
[1732387264062,0.27071668,3426.5,3425.8,0.32904058]
[1732387264261,0.5763292,3426.8,3425.9,0.7547]
[1732387264421,0.27082361,3426.7,3425.9,0.7547]
[1732387264765,0.27082361,3426.6,3426.0,0.03757857]
[1732387265123,0.29715281,3426.6,3426.0,0.03757857]
[1732387265323,0.27082361,3426.5,3426.0,0.03757857]
[1732387265739,0.16202528,3426.7,3426.0,0.03757857]
[1732387266075,0.27095908,3426.6,3426.0,0.03757857]
[1732387266218,0.29728828,3426.5,3426.0,0.03757857]
[1732387266570,0.29728828,3426.5,3426.1,0.03748626]
[1732387266571,0.8153,3426.3,3426.1,0.03748626]
[1732387266733,0.8153,3426.3,3425.4,0.8208]
[1732387266734,0.29728828,3426.2,3425.4,0.8208]
[1732387266935,0.27095908,3426.1,3425.5,0.03658929]
[1732387267124,0.0263292,3426.0,3425.5,0.03658929]
[1732387267321,0.27095908,3425.9,3425.5,0.03658929]
[1732387268135,0.8153,3425.7,3425.6,0.03531094]
[1732387268322,0.27095908,3425.7,3424.6,0.2913]
[1732387268528,0.0263292,3425.9,3424.7,0.32713592]
[1732387268770,0.27103774,3425.8,3424.7,0.32713592]
[1732387269059,0.0263292,3425.7,3424.7,0.32713592]
[1732387269354,0.0263292,3425.9,3424.7,0.32713592]
[1732387269657,0.27116744,3425.8,3424.7,0.03583592]
[1732387269858,0.29749664,3425.7,3424.7,0.03583592]
[1732387270045,0.0263292,3425.7,3424.4,0.02919362]
[1732387270364,3.75154187,3426.7,3424.4,0.02919362]
[1732387270365,0.55,3426.3,3424.7,0.2913]
[1732387270566,0.2712694,3426.2,3424.8,0.02919361]
[1732387270866,0.2712694,3426.1,3424.9,0.03573005]
[1732387271069,0.2712694,3426.0,3425.1,0.2913]
[1732387271370,0.2712694,3425.9,3425.2,0.73845389]
[1732387271521,0.2712694,3425.8,3425.2,0.73845389]
[1732387271721,0.5763292,3426.3,3425.2,0.73845389]
[1732387271964,0.27134164,3426.2,3425.2,0.73845389]
[1732387272172,0.55,3426.0,3425.2,1.02975389]
[1732387272325,0.27134164,3425.9,3425.2,1.02975389]
[1732387272659,0.27134164,3425.8,3425.2,1.02975389]
[1732387272822,0.0263292,3426.2,3425.2,1.02975389]
[1732387273230,0.271435,3426.1,3425.2,1.02975389]
[1732387273430,0.271435,3426.0,3425.2,1.02975389]
[1732387273673,0.271435,3425.9,3425.2,1.02975389]
[1732387273990,0.0263292,3425.8,3425.2,1.02975389]
[1732387274268,0.271435,3425.7,3425.2,1.02975389]
[1732387274630,0.0263292,3426.2,3425.2,1.02975389]
[1732387274963,0.55,3426.0,3425.2,0.9942]
[1732387275166,0.55,3425.8,3425.2,0.9942]
[1732387275326,0.2716622,3425.7,3425.3,0.03454194]
[1732387275658,0.2716622,3425.7,3425.2,0.9942]
[1732387275831,0.2716622,3425.7,3425.4,0.03448325]
[1732387276027,0.2716622,3425.6,3425.2,0.9942]
[1732387276366,0.55,3425.9,3425.2,0.9942]
[1732387276568,0.29834276,3425.8,3425.2,0.9942]
[1732387276786,0.29834276,3425.7,3425.2,0.9942]
[1732387277060,0.27201356,3425.6,3425.2,0.9942]
[1732387277265,0.27201356,3425.5,3425.2,0.9942]
[1732387277478,0.27201356,3425.8,3424.7,0.2913]
[1732387277760,0.27214681,3425.7,3425.2,0.2913]
[1732387277965,0.55,3425.9,3425.2,0.2913]
[1732387277966,0.29847601,3425.6,3425.2,0.2913]
[1732387278140,0.27214681,3425.5,3425.3,0.0345402]
[1732387278338,0.55,3425.9,3425.2,0.2913]
[1732387278339,0.27214681,3425.4,3425.2,0.2913]
[1732387278531,0.55,3425.9,3425.2,0.2913]
[1732387278731,0.29858007,3425.8,3425.3,0.0345402]
[1732387278962,0.27225087,3425.7,3425.2,0.2913]
[1732387279213,0.27225087,3425.6,3425.3,0.03454483]
[1732387279509,0.27225087,3425.5,3425.4,0.9942]
[1732387280006,0.29858007,3426.0,3425.4,1.02867746]
[1732387280178,0.27225087,3425.9,3425.4,1.02867746]
[1732387280391,0.29858007,3425.8,3425.4,1.02867746]
[1732387280698,0.27225087,3425.7,3425.4,1.02867746]
[1732387281069,0.27225087,3425.6,3425.4,1.02867746]
[1732387281303,0.27225087,3425.5,3425.4,1.02867746]
[1732387281690,0.55,3425.9,3425.4,1.02867746]
[1732387282005,0.27225087,3425.8,3425.4,1.02867746]
[1732387282205,0.27225087,3425.7,3425.4,1.02867746]
[1732387282510,0.27225087,3425.6,3425.4,0.9942]
[1732387282675,0.27225087,3425.5,3425.4,0.9942]
[1732387283804,0.27240596,3425.5,3425.4,0.9942]
[1732387284224,0.55,3425.9,3425.4,0.9942]
[1732387284407,0.27243067,3425.8,3425.4,1.02855743]
[1732387284606,0.27243067,3425.7,3425.4,1.02855743]
[1732387284815,0.27243067,3425.6,3425.4,1.02855743]
[1732387285018,0.55,3425.4,3424.5,0.2913]
[1732387285190,0.29875987,3425.3,3424.5,0.2913]
[1732387285396,0.55,3425.1,3424.5,0.2913]
[1732387285688,0.27243067,3425.0,3424.5,0.2913]
[1732387285999,0.29875987,3424.9,3424.5,0.2913]
[1732387286200,0.55,3425.1,3424.5,0.2913]
[1732387286201,0.27243067,3424.8,3424.5,0.2913]
[1732387286410,0.55,3425.1,3424.5,0.2913]
[1732387286411,0.27243067,3424.7,3424.5,0.2913]
[1732387286600,0.55,3425.1,3424.5,0.2913]
[1732387286800,0.27242896,3425.0,3424.5,0.2913]
[1732387287006,0.27242896,3424.9,3424.5,0.2913]
[1732387287193,0.27242896,3424.8,3424.5,0.2913]
[1732387287395,0.55,3425.1,3424.5,0.2913]
[1732387287587,0.27237425,3425.0,3424.5,0.2913]
[1732387287811,0.27237425,3424.9,3424.5,0.2913]
[1732387288021,0.27237425,3424.8,3424.5,0.2913]
[1732387288321,0.55,3425.1,3424.5,0.2913]
[1732387288322,0.27237425,3424.7,3424.5,0.2913]
[1732387288528,0.55,3425.1,3424.5,0.2913]
[1732387288825,0.7952,3424.9,3424.2,0.2913]
[1732387289061,0.7952,3424.9,3423.1,0.1]
[1732387289062,0.55,3424.6,3423.7,0.7029]
[1732387289326,0.55,3424.4,3423.7,0.7029]
[1732387289489,0.55,3424.2,3423.7,0.7029]
[1732387289686,0.27232477,3424.1,3423.7,0.7029]
[1732387289899,0.27232477,3424.0,3423.7,0.7029]
[1732387290129,0.55,3424.6,3423.7,0.7029]
[1732387290424,0.55,3424.4,3423.7,0.7029]
[1732387290625,0.27201492,3424.3,3423.7,0.7029]
[1732387290829,0.55,3424.4,3423.7,0.7029]
[1732387290830,0.27201492,3424.2,3423.7,0.7029]
[1732387291127,0.55,3424.6,3423.7,0.7029]
[1732387291284,0.55,3424.4,3423.7,0.7029]
[1732387291487,0.27193442,3424.3,3423.7,0.7029]
[1732387291683,0.27193442,3424.2,3423.7,0.7029]
[1732387291908,0.27193442,3424.1,3423.7,0.7029]
[1732387292117,0.0263292,3424.5,3423.7,0.7029]
[1732387292303,0.27186804,3424.4,3423.7,0.7029]
[1732387292500,0.27186804,3424.3,3423.7,0.7029]
[1732387292708,0.27186804,3424.2,3423.7,0.7029]
[1732387292915,0.27186804,3424.1,3423.7,0.7029]
[1732387293113,0.1617068,3424.4,3423.7,0.7029]
[1732387293296,0.27180857,3424.3,3423.7,0.7029]
[1732387293510,0.27180857,3424.2,3423.7,0.7029]
[1732387293717,0.27181172,3424.1,3423.7,0.7029]
[1732387294023,0.5763292,3424.6,3423.7,0.7029]
[1732387294236,0.27179103,3424.5,3423.7,0.7029]
[1732387294433,0.27179103,3424.4,3423.7,0.7029]
[1732387294602,0.27179103,3424.3,3423.7,0.7029]
[1732387294797,0.27179103,3424.2,3423.7,0.7029]
[1732387295034,0.1616991,3424.5,3423.7,0.7029]
[1732387295331,0.27181441,3424.4,3423.7,0.7029]
[1732387295506,0.27181441,3424.3,3423.7,0.7029]
[1732387295707,0.27181441,3424.2,3423.7,0.7029]
[1732387295914,0.55,3424.6,3423.7,0.7029]
[1732387296114,0.27177683,3424.5,3423.7,0.7029]
[1732387296353,0.27177683,3424.4,3423.7,0.7029]
[1732387296633,0.27177683,3424.3,3423.7,0.7029]
[1732387296800,0.55,3424.9,3423.7,0.7029]
[1732387296999,0.55,3424.7,3423.8,0.03417508]
[1732387297197,0.27177936,3424.6,3423.8,0.03417508]
[1732387297861,0.0263292,3424.5,3423.8,0.03417508]
[1732387298012,0.27177936,3424.4,3423.8,0.03417508]
[1732387298210,0.29810856,3424.3,3423.8,0.03417508]
[1732387298546,0.27177936,3424.2,3423.9,0.03411635]
[1732387298696,0.7709,3425.0,3424.0,0.7029]
[1732387298906,0.27171001,3424.9,3424.2,0.7029]
[1732387299135,0.0263292,3425.3,3424.3,0.32524292]
[1732387299334,0.27169291,3425.2,3424.3,0.32524292]
[1732387299549,0.27169291,3425.1,3424.3,0.32524292]
[1732387299711,0.27169291,3425.0,3424.3,0.32524292]
[1732387299903,0.7709,3425.4,3424.3,0.32524292]
[1732387299904,0.27169291,3424.9,3424.3,0.32524292]
[1732387300246,0.27169291,3424.8,3424.4,0.9942]
[1732387300481,0.91568059,3427.4,3424.8,0.9942]
[1732387300482,0.0263292,3425.8,3424.8,0.9942]
[1732387300742,0.7709,3426.3,3425.2,0.2913]
[1732387300743,0.27164828,3425.7,3425.2,0.2913]
[1732387300944,0.7709,3426.3,3425.3,0.02919118]
[1732387301102,0.27162518,3426.2,3425.4,0.2913]
[1732387301310,0.27162518,3426.1,3425.5,0.73636736]
[1732387301543,0.27162518,3426.0,3425.5,0.73636736]
[1732387301754,0.27162518,3425.9,3425.5,0.73636736]
[1732387301963,0.27162518,3425.8,3425.5,0.73636736]
[1732387302119,0.27162518,3425.8,3422.6,5.38]
[1732387302120,0.7709,3426.4,3425.6,0.0322425]
[1732387302320,0.1,3427.0,3424.8,0.7029]
[1732387302321,0.7709,3426.2,3424.8,0.7029]
[1732387302549,0.5763292,3426.1,3424.8,0.7029]
[1732387302827,0.55,3425.9,3424.9,0.03157675]
[1732387303051,0.55,3425.7,3424.9,0.03157675]
[1732387303357,0.55,3425.5,3424.9,0.03157675]
[1732387304266,0.27161881,3425.4,3424.9,0.03157675]
[1732387304563,0.55,3425.5,3424.9,0.03157675]
[1732387304722,0.27162342,3425.4,3424.9,0.03157675]
[1732387304922,0.55,3425.5,3424.9,0.03157675]
[1732387305139,0.27162266,3425.4,3425.0,0.02919716]
[1732387305332,0.7709,3426.2,3425.0,0.03135334]
[1732387305540,0.27161756,3426.1,3425.0,0.03135334]
[1732387305762,0.27161756,3426.0,3425.0,0.03135334]
[1732387305963,0.27161756,3425.9,3425.0,0.03135334]
[1732387306133,0.27161756,3425.8,3425.0,0.03135334]
[1732387306324,0.27161756,3425.7,3425.0,0.03135334]
[1732387306524,0.27161756,3425.6,3425.0,0.03135334]
[1732387306742,0.5763292,3426.1,3425.0,0.03135334]
[1732387306932,0.27159985,3426.0,3425.0,0.03135334]
[1732387307131,0.1882121,3425.9,3425.0,0.03135334]
[1732387307360,0.27159985,3425.8,3425.0,0.03135334]
[1732387307563,0.27159985,3425.7,3425.0,0.03135334]
[1732387307754,0.27159985,3425.6,3425.0,0.03135334]
[1732387307959,0.1618829,3425.9,3425.1,0.7029]
[1732387308267,0.27159098,3425.8,3425.1,0.73420155]
[1732387308470,0.27159098,3425.7,3425.1,0.73420155]
[1732387308630,0.7709,3426.2,3425.1,0.73420155]
[1732387308830,0.27157952,3426.1,3425.1,0.73420155]
[1732387309061,0.27157952,3426.0,3425.4,0.2911]
[1732387309286,0.27157952,3425.9,3425.7,0.2911]
[1732387309461,0.803,3426.8,3425.7,0.2911]
[1732387309766,0.27153223,3426.7,3425.8,0.03088051]
[1732387309967,0.803,3426.8,3425.8,0.03088051]
[1732387309968,0.27153223,3426.6,3425.8,0.03088051]
[1732387310189,0.803,3426.8,3425.7,0.2911]
[1732387310190,0.27153223,3426.5,3425.7,0.2911]
[1732387310395,0.27153223,3426.4,3425.7,0.2911]
[1732387310600,0.27153223,3426.3,3425.8,0.03088051]
[1732387310912,0.27153223,3426.2,3425.7,0.32028887]
[1732387311085,0.803,3427.1,3426.1,0.2911]
[1732387311267,0.27137803,3427.0,3426.1,0.2911]